[Event "Late-Titled-Tuesday-Blitz-September-12-2023"]
[Site "Chess.com"]
[Date "2023.09.12"]
[Round "10"]
[White "GMKrikor"]
[Black "Mikhail_Golubev"]
[Result "1-0"]
[WhiteElo "2876"]
[BlackElo "2600"]
[TimeControl "180+1"]
[EndTime "15:51:16 PDT"]
[Termination "GMKrikor won on time"]

1. Nf3 {[%clk 0:03:00.9]} 1... d6 {[%clk 0:02:59.4]} 2. d4 {[%clk 0:02:56.4]}
2... Nf6 {[%clk 0:02:59.4]} 3. c4 {[%clk 0:02:55.4]} 3... g6 {[%clk 0:02:59.4]}
4. Nc3 {[%clk 0:02:54.7]} 4... Bg7 {[%clk 0:02:59.8]} 5. e4 {[%clk 0:02:54.4]}
5... O-O {[%clk 0:03:00.4]} 6. h3 {[%clk 0:02:55.1]} 6... e5 {[%clk 0:02:59.7]}
7. d5 {[%clk 0:02:53.7]} 7... Nh5 {[%clk 0:02:59.8]} 8. g3 {[%clk 0:02:43.3]}
8... f5 {[%clk 0:02:58.2]} 9. exf5 {[%clk 0:02:40.9]} 9... gxf5 {[%clk
0:02:58.3]} 10. Nh4 {[%clk 0:02:41.6]} 10... Nf4 {[%clk 0:02:58.5]} 11. gxf4
{[%clk 0:02:17.4]} 11... Qxh4 {[%clk 0:02:57.3]} 12. Rg1 {[%clk 0:02:18.2]}
12... Re8 {[%clk 0:02:40.3]} 13. Be2 {[%clk 0:01:58.6]} 13... Na6 {[%clk
0:02:29.4]} 14. Be3 {[%clk 0:01:55.9]} 14... Nc5 {[%clk 0:02:05.6]} 15. fxe5
{[%clk 0:01:31.2]} 15... Rxe5 {[%clk 0:02:03.4]} 16. Qd4 {[%clk 0:01:07.6]}
16... f4 {[%clk 0:01:28.6]} 17. O-O-O {[%clk 0:00:55.5]} 17... Bf5 {[%clk
0:01:14.1]} 18. Qxf4 {[%clk 0:00:48]} 18... Qxf4 {[%clk 0:01:09.9]} 19. Bxf4
{[%clk 0:00:48]} 19... Rxe2 {[%clk 0:01:06.3]} 20. Nxe2 {[%clk 0:00:48.9]} 20...
Nd3+ {[%clk 0:01:06.5]} 21. Rxd3 {[%clk 0:00:37.2]} 21... Bxd3 {[%clk
0:01:05.8]} 22. Bh6 {[%clk 0:00:38]} 22... Bg6 {[%clk 0:01:01.7]} 23. Bxg7
{[%clk 0:00:38]} 23... Kxg7 {[%clk 0:01:02.6]} 24. Nf4 {[%clk 0:00:37.9]} 24...
Kf6 {[%clk 0:00:59]} 25. Kd2 {[%clk 0:00:36.4]} 25... Bf7 {[%clk 0:00:42.5]} 26.
Ne2 {[%clk 0:00:29.7]} 26... c6 {[%clk 0:00:40.3]} 27. dxc6 {[%clk 0:00:27.9]}
27... bxc6 {[%clk 0:00:40.5]} 28. b3 {[%clk 0:00:28.6]} 28... a5 {[%clk
0:00:40.4]} 29. Nc3 {[%clk 0:00:28.5]} 29... d5 {[%clk 0:00:37.3]} 30. cxd5
{[%clk 0:00:28.5]} 30... cxd5 {[%clk 0:00:37.6]} 31. Ke3 {[%clk 0:00:29]} 31...
Be6 {[%clk 0:00:25.5]} 32. h4 {[%clk 0:00:27.6]} 32... d4+ {[%clk 0:00:20.1]}
33. Kxd4 {[%clk 0:00:27.5]} 33... Rd8+ {[%clk 0:00:20.7]} 34. Ke3 {[%clk
0:00:28.1]} 34... Bf5 {[%clk 0:00:20.6]} 35. Rd1 {[%clk 0:00:22.5]} 35... Rc8
{[%clk 0:00:19.2]} 36. Ne2 {[%clk 0:00:16.7]} 36... Re8+ {[%clk 0:00:17.7]} 37.
Kf3 {[%clk 0:00:15.9]} 37... Be4+ {[%clk 0:00:16]} 38. Kg3 {[%clk 0:00:16]}
38... Bf5 {[%clk 0:00:14.8]} 39. Nf4 {[%clk 0:00:16.3]} 39... Rg8+ {[%clk
0:00:14.1]} 40. Kh2 {[%clk 0:00:15.7]} 40... Rg4 {[%clk 0:00:14]} 41. Ng2 {[%clk
0:00:15.3]} 41... Re4 {[%clk 0:00:12.9]} 42. Ne3 {[%clk 0:00:15.2]} 42... Rxh4+
{[%clk 0:00:12.4]} 43. Kg3 {[%clk 0:00:15.9]} 43... Rh3+ {[%clk 0:00:12.6]} 44.
Kf4 {[%clk 0:00:14.9]} 44... Rh4+ {[%clk 0:00:12.4]} 45. Kg3 {[%clk 0:00:14.1]}
45... Rh3+ {[%clk 0:00:13.3]} 46. Kg2 {[%clk 0:00:14.6]} 46... Rh4 {[%clk
0:00:12.7]} 47. Nxf5 {[%clk 0:00:13.3]} 47... Kxf5 {[%clk 0:00:12.4]} 48. Rd5+
{[%clk 0:00:14.1]} 48... Ke4 {[%clk 0:00:11.9]} 49. Rxa5 {[%clk 0:00:15]} 49...
Rg4+ {[%clk 0:00:12.1]} 50. Kf1 {[%clk 0:00:14.7]} 50... Rg7 {[%clk 0:00:09.2]}
51. Rh5 {[%clk 0:00:13.8]} 51... Kd3 {[%clk 0:00:08.6]} 52. a4 {[%clk
0:00:12.2]} 52... Kc3 {[%clk 0:00:08.6]} 53. Rb5 {[%clk 0:00:12.8]} 53... h5
{[%clk 0:00:08.1]} 54. Rxh5 {[%clk 0:00:10.5]} 54... Kxb3 {[%clk 0:00:08.3]} 55.
a5 {[%clk 0:00:11.2]} 55... Rg6 {[%clk 0:00:04.2]} 56. f3 {[%clk 0:00:10.4]}
56... Kb4 {[%clk 0:00:04]} 57. Kf2 {[%clk 0:00:11]} 57... Rf6 {[%clk 0:00:04]}
58. Kg3 {[%clk 0:00:10.9]} 58... Rg6+ {[%clk 0:00:04.1]} 59. Kf4 {[%clk
0:00:11.5]} 59... Rf6+ {[%clk 0:00:04.3]} 60. Kg4 {[%clk 0:00:11.5]} 60... Rf8
{[%clk 0:00:04.8]} 61. f4 {[%clk 0:00:11.4]} 61... Rg8+ {[%clk 0:00:04.8]} 62.
Kf3 {[%clk 0:00:12.1]} 62... Rf8 {[%clk 0:00:04.8]} 63. Re5 {[%clk 0:00:12.8]}
63... Rh8 {[%clk 0:00:03.8]} 64. f5 {[%clk 0:00:13.3]} 64... Rh1 {[%clk
0:00:01.9]} 65. Kf4 {[%clk 0:00:13.4]} 65... Rf1+ {[%clk 0:00:01.8]} 66. Kg5
{[%clk 0:00:13.8]} 66... Rg1+ {[%clk 0:00:02.3]} 67. Kf6 {[%clk 0:00:14.2]}
67... Rf1 {[%clk 0:00:02.6]} 68. Kf7 {[%clk 0:00:14.1]} 1-0

[Event "Late-Titled-Tuesday-Blitz-September-12-2023"]
[Site "Chess.com"]
[Date "2023.09.12"]
[Round "10"]
[White "DryCounty"]
[Black "leoduarte"]
[Result "1/2-1/2"]
[WhiteElo "2641"]
[BlackElo "2466"]
[TimeControl "180+1"]
[EndTime "15:51:24 PDT"]
[Termination "Game drawn - insufficient material"]

1. e4 {[%clk 0:02:57.9]} 1... e5 {[%clk 0:02:59.8]} 2. Nf3 {[%clk 0:02:58]} 2...
Nc6 {[%clk 0:03:00.5]} 3. Bb5 {[%clk 0:02:57.8]} 3... a6 {[%clk 0:03:00.9]} 4.
Ba4 {[%clk 0:02:58.1]} 4... Nf6 {[%clk 0:03:00.9]} 5. O-O {[%clk 0:02:58.7]}
5... b5 {[%clk 0:03:01.1]} 6. Bb3 {[%clk 0:02:58.4]} 6... Bc5 {[%clk 0:03:01.7]}
7. d3 {[%clk 0:02:56.1]} 7... d6 {[%clk 0:02:57.9]} 8. Nc3 {[%clk 0:02:54.3]}
8... h6 {[%clk 0:02:57.6]} 9. h3 {[%clk 0:02:54]} 9... O-O {[%clk 0:02:57.7]}
10. Nd5 {[%clk 0:02:54.2]} 10... Rb8 {[%clk 0:02:49.3]} 11. c3 {[%clk
0:02:52.5]} 11... Nxd5 {[%clk 0:02:49.5]} 12. exd5 {[%clk 0:02:50.5]} 12... Ne7
{[%clk 0:02:47]} 13. d4 {[%clk 0:02:50.7]} 13... exd4 {[%clk 0:02:45.6]} 14.
Nxd4 {[%clk 0:02:50.8]} 14... Bb7 {[%clk 0:02:33]} 15. Qh5 {[%clk 0:02:48.3]}
15... Bxd4 {[%clk 0:02:30.6]} 16. cxd4 {[%clk 0:02:49.2]} 16... Ng6 {[%clk
0:02:29.8]} 17. Bc2 {[%clk 0:02:45.7]} 17... Qf6 {[%clk 0:02:27.5]} 18. Be3
{[%clk 0:02:42.9]} 18... Rbe8 {[%clk 0:02:24.2]} 19. Rac1 {[%clk 0:02:41.6]}
19... Re7 {[%clk 0:02:03.1]} 20. a4 {[%clk 0:02:39.7]} 20... b4 {[%clk
0:01:54.7]} 21. a5 {[%clk 0:02:36.8]} 21... Nf4 {[%clk 0:01:53.6]} 22. Bxf4
{[%clk 0:02:26.9]} 22... Qxf4 {[%clk 0:01:54.5]} 23. Qf5 {[%clk 0:02:15.3]}
23... Qxf5 {[%clk 0:01:53.4]} 24. Bxf5 {[%clk 0:02:16.2]} 24... Bxd5 {[%clk
0:01:53]} 25. Bd3 {[%clk 0:02:14.7]} 25... c6 {[%clk 0:01:36.8]} 26. Rfe1 {[%clk
0:02:06.4]} 26... Rfe8 {[%clk 0:01:33.7]} 27. Rxe7 {[%clk 0:01:54.5]} 27... Rxe7
{[%clk 0:01:34.6]} 28. Bc4 {[%clk 0:01:39.4]} 28... Bxc4 {[%clk 0:00:58.1]} 29.
Rxc4 {[%clk 0:01:40.3]} 29... c5 {[%clk 0:00:57.3]} 30. dxc5 {[%clk 0:01:39.5]}
30... dxc5 {[%clk 0:00:50.6]} 31. Rxc5 {[%clk 0:01:38.7]} 31... Re1+ {[%clk
0:00:50.6]} 32. Kh2 {[%clk 0:01:38.1]} 32... Re2 {[%clk 0:00:49.9]} 33. b3
{[%clk 0:01:31.6]} 33... Rxf2 {[%clk 0:00:46.2]} 34. Rc8+ {[%clk 0:01:26.6]}
34... Kh7 {[%clk 0:00:45.7]} 35. Rc6 {[%clk 0:01:25.4]} 35... Rb2 {[%clk
0:00:29.6]} 36. Rxa6 {[%clk 0:01:25]} 36... Rxb3 {[%clk 0:00:30.1]} 37. Rb6
{[%clk 0:01:25.6]} 37... Ra3 {[%clk 0:00:30.5]} 38. Rxb4 {[%clk 0:01:25]} 38...
Rxa5 {[%clk 0:00:30.4]} 39. Rb7 {[%clk 0:01:25.4]} 39... Kg6 {[%clk 0:00:29.1]}
40. Rb6+ {[%clk 0:01:25.3]} 40... Kh7 {[%clk 0:00:27.3]} 41. Rb7 {[%clk
0:01:24.7]} 41... Rf5 {[%clk 0:00:27.8]} 42. Rb4 {[%clk 0:01:23.6]} 42... g6
{[%clk 0:00:28.2]} 43. Rb7 {[%clk 0:01:23.3]} 43... h5 {[%clk 0:00:28.4]} 44. h4
{[%clk 0:01:20.8]} 44... Kg7 {[%clk 0:00:28.3]} 45. g3 {[%clk 0:01:20.5]} 45...
Rc5 {[%clk 0:00:28.1]} 46. Rb6 {[%clk 0:01:19.7]} 46... Rf5 {[%clk 0:00:26.1]}
47. Ra6 {[%clk 0:01:19]} 47... Rf6 {[%clk 0:00:26.4]} 48. Ra5 {[%clk 0:01:19.2]}
48... Rb6 {[%clk 0:00:26.4]} 49. Rc5 {[%clk 0:01:18.8]} 49... Kf6 {[%clk
0:00:26.8]} 50. Ra5 {[%clk 0:01:18.2]} 50... Ke6 {[%clk 0:00:27.2]} 51. Rc5
{[%clk 0:01:17.2]} 51... Kf6 {[%clk 0:00:27.6]} 52. Ra5 {[%clk 0:01:17.1]} 52...
Re6 {[%clk 0:00:28.3]} 53. Rb5 {[%clk 0:01:17]} 53... Re5 {[%clk 0:00:28.8]} 54.
Rb6+ {[%clk 0:01:16.4]} 54... Kf5 {[%clk 0:00:28.7]} 55. Rb7 {[%clk 0:01:16.6]}
55... f6 {[%clk 0:00:28.8]} 56. Rb6 {[%clk 0:01:16.7]} 56... g5 {[%clk
0:00:25.1]} 57. hxg5 {[%clk 0:01:16.8]} 57... fxg5 {[%clk 0:00:25.7]} 58. Rb4
{[%clk 0:01:16.4]} 58... Re4 {[%clk 0:00:25.5]} 59. Rb2 {[%clk 0:01:09.7]} 59...
Kg4 {[%clk 0:00:25.4]} 60. Kg2 {[%clk 0:01:08]} 60... Ra4 {[%clk 0:00:22.9]} 61.
Rc2 {[%clk 0:01:07.7]} 61... Rd4 {[%clk 0:00:19.4]} 62. Rb2 {[%clk 0:01:07.7]}
62... Re4 {[%clk 0:00:20]} 63. Rc2 {[%clk 0:01:07.6]} 63... Rd4 {[%clk
0:00:16.8]} 64. Rb2 {[%clk 0:01:07.4]} 64... Rc4 {[%clk 0:00:16.9]} 65. Ra2
{[%clk 0:01:07.1]} 65... Rb4 {[%clk 0:00:17.3]} 66. Rc2 {[%clk 0:01:07]} 66...
Rb5 {[%clk 0:00:17.6]} 67. Rc4+ {[%clk 0:01:06.7]} 67... Kf5 {[%clk 0:00:18.3]}
68. Ra4 {[%clk 0:01:05.5]} 68... Rb2+ {[%clk 0:00:18.7]} 69. Kg1 {[%clk
0:01:02.6]} 69... Rc2 {[%clk 0:00:19]} 70. Rb4 {[%clk 0:01:01.7]} 70... Re2
{[%clk 0:00:18.9]} 71. Ra4 {[%clk 0:01:01.4]} 71... Re4 {[%clk 0:00:19]} 72. Ra2
{[%clk 0:00:54.1]} 72... Rb4 {[%clk 0:00:10]} 73. Kg2 {[%clk 0:00:52.2]} 73...
Kg4 {[%clk 0:00:08.8]} 74. Rc2 {[%clk 0:00:51.9]} 74... Re4 {[%clk 0:00:08.9]}
75. Rb2 {[%clk 0:00:51.2]} 75... Kf5 {[%clk 0:00:09.4]} 76. Rf2+ {[%clk
0:00:49.7]} 76... Ke5 {[%clk 0:00:08.5]} 77. Ra2 {[%clk 0:00:49.4]} 77... Kd4
{[%clk 0:00:03.6]} 78. Ra5 {[%clk 0:00:44.3]} 78... Rg4 {[%clk 0:00:03.4]} 79.
Kf3 {[%clk 0:00:42.3]} 79... Kd3 {[%clk 0:00:01.4]} 80. Ra3+ {[%clk 0:00:39.8]}
80... Kd4 {[%clk 0:00:01.8]} 81. Ra4+ {[%clk 0:00:39.8]} 81... Ke5 {[%clk
0:00:02.3]} 82. Rxg4 {[%clk 0:00:38.8]} 82... hxg4+ {[%clk 0:00:03]} 83. Kxg4
{[%clk 0:00:38.6]} 83... Kf6 {[%clk 0:00:03.6]} 84. Kh5 {[%clk 0:00:38.6]} 84...
Kf5 {[%clk 0:00:03.7]} 85. Kh6 {[%clk 0:00:38.9]} 85... Kg4 {[%clk 0:00:02.5]}
86. Kg6 {[%clk 0:00:38.9]} 86... Kxg3 {[%clk 0:00:02.6]} 87. Kxg5 {[%clk
0:00:39]} 1/2-1/2

[Event "Late-Titled-Tuesday-Blitz-September-12-2023"]
[Site "Chess.com"]
[Date "2023.09.12"]
[Round "10"]
[White "RETURNOFTHELAGGER"]
[Black "maksimys18"]
[Result "1/2-1/2"]
[WhiteElo "2598"]
[BlackElo "2496"]
[TimeControl "180+1"]
[EndTime "15:51:33 PDT"]
[Termination "Game drawn - insufficient material"]

1. d4 {[%clk 0:02:52.7]} 1... e6 {[%clk 0:03:00.9]} 2. Nf3 {[%clk 0:02:53.6]}
2... d5 {[%clk 0:03:00.9]} 3. g3 {[%clk 0:02:51]} 3... f5 {[%clk 0:03:00.6]} 4.
Bg2 {[%clk 0:02:51.9]} 4... Nf6 {[%clk 0:03:01.2]} 5. O-O {[%clk 0:02:51.4]}
5... Bd6 {[%clk 0:03:01.9]} 6. Bf4 {[%clk 0:02:45]} 6... Bxf4 {[%clk 0:03:01.1]}
7. gxf4 {[%clk 0:02:45.9]} 7... O-O {[%clk 0:03:01.6]} 8. e3 {[%clk 0:02:43]}
8... Nbd7 {[%clk 0:03:01.8]} 9. Nbd2 {[%clk 0:02:38.7]} 9... Ne4 {[%clk
0:03:01.8]} 10. c4 {[%clk 0:02:37.4]} 10... c6 {[%clk 0:03:01.7]} 11. cxd5
{[%clk 0:02:31.8]} 11... exd5 {[%clk 0:03:00.2]} 12. Ne5 {[%clk 0:02:30.8]}
12... Nxe5 {[%clk 0:03:00.3]} 13. dxe5 {[%clk 0:02:27.3]} 13... Be6 {[%clk
0:03:00.5]} 14. Nb3 {[%clk 0:02:23.9]} 14... Bf7 {[%clk 0:02:58.1]} 15. Rc1
{[%clk 0:02:24]} 15... Qh4 {[%clk 0:02:57.6]} 16. f3 {[%clk 0:02:20.4]} 16...
Bh5 {[%clk 0:02:49.2]} 17. Qe1 {[%clk 0:02:12.1]} 17... Qxe1 {[%clk 0:02:08.6]}
18. Rfxe1 {[%clk 0:02:13]} 18... g5 {[%clk 0:02:09.2]} 19. fxe4 {[%clk 0:02:10]}
19... gxf4 {[%clk 0:02:08.6]} 20. exd5 {[%clk 0:02:03.9]} 20... f3 {[%clk
0:02:09]} 21. Bh3 {[%clk 0:02:01.9]} 21... cxd5 {[%clk 0:02:09]} 22. Nd4 {[%clk
0:01:57.5]} 22... f4 {[%clk 0:02:07]} 23. Kf2 {[%clk 0:01:43.1]} 23... Rae8
{[%clk 0:01:59.9]} 24. e6 {[%clk 0:01:33.6]} 24... fxe3+ {[%clk 0:01:58.4]} 25.
Rxe3 {[%clk 0:01:33.5]} 25... Rf4 {[%clk 0:01:54.7]} 26. Nxf3 {[%clk 0:01:27.2]}
26... d4 {[%clk 0:01:49.8]} 27. Rb3 {[%clk 0:01:21.2]} 27... Ref8 {[%clk
0:01:47.9]} 28. Bg2 {[%clk 0:01:17.8]} 28... b6 {[%clk 0:01:44.8]} 29. h3 {[%clk
0:01:12.8]} 29... d3 {[%clk 0:01:37.2]} 30. Rxd3 {[%clk 0:01:11]} 30... Re4
{[%clk 0:01:35.4]} 31. Re1 {[%clk 0:01:05.8]} 31... Rb4 {[%clk 0:01:35.2]} 32.
b3 {[%clk 0:01:05.2]} 32... Rbf4 {[%clk 0:01:34.8]} 33. e7 {[%clk 0:01:03.2]}
33... Re8 {[%clk 0:01:34.7]} 34. Rd8 {[%clk 0:01:02.2]} 34... Kf7 {[%clk
0:01:29.7]} 35. Kg3 {[%clk 0:01:00.8]} 35... Rf5 {[%clk 0:01:12]} 36. Rxe8
{[%clk 0:01:00.6]} 36... Kxe8 {[%clk 0:01:08.7]} 37. h4 {[%clk 0:01:01.5]} 37...
Rf7 {[%clk 0:01:04]} 38. Ng5 {[%clk 0:00:59.9]} 38... Rxe7 {[%clk 0:01:00.9]}
39. Rxe7+ {[%clk 0:01:00.8]} 39... Kxe7 {[%clk 0:01:01.8]} 40. Bf3 {[%clk
0:00:57.4]} 40... Be8 {[%clk 0:00:42]} 41. Nxh7 {[%clk 0:00:56.2]} 41... a5
{[%clk 0:00:42.7]} 42. Bd1 {[%clk 0:00:52.3]} 42... b5 {[%clk 0:00:40.7]} 43.
Kf4 {[%clk 0:00:49.6]} 43... b4 {[%clk 0:00:38.8]} 44. Ng5 {[%clk 0:00:45.7]}
44... Bg6 {[%clk 0:00:37.1]} 45. Ne4 {[%clk 0:00:42.6]} 45... Ke6 {[%clk
0:00:36.1]} 46. h5 {[%clk 0:00:42.7]} 46... Be8 {[%clk 0:00:28.9]} 47. Bg4+
{[%clk 0:00:40.3]} 47... Ke7 {[%clk 0:00:28.9]} 48. Ke5 {[%clk 0:00:39]} 48...
a4 {[%clk 0:00:27.8]} 49. bxa4 {[%clk 0:00:36.7]} 49... Bxa4 {[%clk 0:00:27.3]}
50. h6 {[%clk 0:00:35.9]} 50... Kf8 {[%clk 0:00:21.2]} 51. Kf6 {[%clk
0:00:36.5]} 51... Kg8 {[%clk 0:00:18.8]} 52. Kg6 {[%clk 0:00:27.8]} 52... Kh8
{[%clk 0:00:17.8]} 53. Be6 {[%clk 0:00:24.8]} 53... Bc2 {[%clk 0:00:18.2]} 54.
Bd5 {[%clk 0:00:22.2]} 54... Bb1 {[%clk 0:00:17.7]} 55. Kf6 {[%clk 0:00:19.8]}
55... Kh7 {[%clk 0:00:17.1]} 56. Kg5 {[%clk 0:00:17.6]} 56... Bc2 {[%clk
0:00:17.6]} 57. Nf6+ {[%clk 0:00:15.8]} 57... Kh8 {[%clk 0:00:18.1]} 58. Bb3
{[%clk 0:00:15.6]} 58... Bb1 {[%clk 0:00:18]} 59. h7 {[%clk 0:00:16]} 59... Bd3
{[%clk 0:00:17.6]} 60. Kf4 {[%clk 0:00:16.4]} 60... Kg7 {[%clk 0:00:16.7]} 61.
Ke5 {[%clk 0:00:16.6]} 61... Bb1 {[%clk 0:00:15.8]} 62. Bg8 {[%clk 0:00:16.4]}
62... Kh8 {[%clk 0:00:11.5]} 63. Kd4 {[%clk 0:00:15.4]} 63... Kg7 {[%clk
0:00:11.3]} 64. Ne8+ {[%clk 0:00:14.9]} 64... Kh8 {[%clk 0:00:10.9]} 65. Kc5
{[%clk 0:00:13.9]} 65... Bxa2 {[%clk 0:00:11.2]} 66. Nf6 {[%clk 0:00:07.7]}
66... b3 {[%clk 0:00:10.7]} 67. Bxb3 {[%clk 0:00:03.9]} 67... Bxb3 {[%clk
0:00:10.9]} 68. Kd6 {[%clk 0:00:04.7]} 68... Bc2 {[%clk 0:00:11.2]} 69. Ke7
{[%clk 0:00:05.3]} 69... Bxh7 {[%clk 0:00:11.8]} 1/2-1/2

[Event "Late-Titled-Tuesday-Blitz-September-12-2023"]
[Site "Chess.com"]
[Date "2023.09.12"]
[Round "10"]
[White "K_A_S_T_O_R"]
[Black "Jospem"]
[Result "0-1"]
[WhiteElo "2933"]
[BlackElo "3091"]
[TimeControl "180+1"]
[EndTime "15:51:41 PDT"]
[Termination "Jospem won on time"]

1. e4 {[%clk 0:03:00.9]} 1... c5 {[%clk 0:03:00.6]} 2. Nf3 {[%clk 0:03:00.7]}
2... d6 {[%clk 0:03:01.1]} 3. d4 {[%clk 0:03:00.8]} 3... cxd4 {[%clk 0:03:02]}
4. Nxd4 {[%clk 0:03:01.3]} 4... a6 {[%clk 0:03:02.9]} 5. Nc3 {[%clk 0:02:56.7]}
5... e6 {[%clk 0:03:03.1]} 6. g4 {[%clk 0:02:53.8]} 6... b5 {[%clk 0:03:03.4]}
7. Bg2 {[%clk 0:02:52.6]} 7... Bb7 {[%clk 0:03:04]} 8. g5 {[%clk 0:02:47.3]}
8... Ne7 {[%clk 0:03:04.6]} 9. h4 {[%clk 0:02:46.3]} 9... Nec6 {[%clk
0:03:05.1]} 10. Nde2 {[%clk 0:02:32.3]} 10... Be7 {[%clk 0:03:03.2]} 11. f4
{[%clk 0:02:26.8]} 11... b4 {[%clk 0:03:01.7]} 12. Na4 {[%clk 0:02:26.1]} 12...
Nd7 {[%clk 0:03:01.4]} 13. Be3 {[%clk 0:02:25.2]} 13... Qa5 {[%clk 0:02:58.6]}
14. b3 {[%clk 0:02:25]} 14... Nc5 {[%clk 0:02:54]} 15. Nb2 {[%clk 0:02:18.7]}
15... Qc7 {[%clk 0:02:52]} 16. O-O {[%clk 0:02:03]} 16... Na7 {[%clk 0:02:43.1]}
17. Ng3 {[%clk 0:01:59.8]} 17... Nb5 {[%clk 0:02:43.4]} 18. f5 {[%clk
0:01:52.4]} 18... Nc3 {[%clk 0:02:43.5]} 19. Qg4 {[%clk 0:01:52]} 19... g6
{[%clk 0:02:23.5]} 20. fxe6 {[%clk 0:01:46.9]} 20... fxe6 {[%clk 0:02:05.8]} 21.
Bd4 {[%clk 0:01:36.2]} 21... e5 {[%clk 0:01:52.3]} 22. Bxc3 {[%clk 0:01:34.4]}
22... bxc3 {[%clk 0:01:53.2]} 23. Nc4 {[%clk 0:01:34.3]} 23... Bc8 {[%clk
0:01:50.8]} 24. Qf3 {[%clk 0:01:27.3]} 24... Be6 {[%clk 0:01:51.3]} 25. Qxc3
{[%clk 0:01:25.7]} 25... h6 {[%clk 0:01:51.9]} 26. h5 {[%clk 0:00:55.8]} 26...
O-O-O {[%clk 0:01:36.9]} 27. hxg6 {[%clk 0:00:48.6]} 27... Bxg5 {[%clk
0:01:33.4]} 28. Nf5 {[%clk 0:00:39.6]} 28... Rhg8 {[%clk 0:01:33.6]} 29. b4
{[%clk 0:00:35.3]} 29... Nb7 {[%clk 0:01:21.9]} 30. Nb6+ {[%clk 0:00:19]} 30...
Kb8 {[%clk 0:01:22.4]} 31. Qxc7+ {[%clk 0:00:19.6]} 31... Kxc7 {[%clk
0:01:23.3]} 32. Nd5+ {[%clk 0:00:20.4]} 32... Bxd5 {[%clk 0:01:24]} 33. exd5
{[%clk 0:00:21]} 33... Rxg6 {[%clk 0:01:24.9]} 34. Kh1 {[%clk 0:00:20.8]} 34...
Bf4 {[%clk 0:01:20.1]} 35. Bh3 {[%clk 0:00:19.7]} 35... Rg5 {[%clk 0:01:13.2]}
36. Rf3 {[%clk 0:00:18.3]} 36... Kb6 {[%clk 0:01:02.9]} 37. Rc3 {[%clk
0:00:15.9]} 37... e4 {[%clk 0:00:57]} 38. Rf1 {[%clk 0:00:09.9]} 38... Be5
{[%clk 0:00:54.9]} 39. Rc6+ {[%clk 0:00:10.5]} 39... Ka7 {[%clk 0:00:53.6]} 40.
Ne7 {[%clk 0:00:10.7]} 40... Rh5 {[%clk 0:00:48.5]} 41. Kg2 {[%clk 0:00:07]}
41... Rg5+ {[%clk 0:00:49.1]} 42. Kh1 {[%clk 0:00:07]} 42... Rg3 {[%clk
0:00:42.8]} 43. Be6 {[%clk 0:00:05.5]} 43... e3 {[%clk 0:00:43.4]} 44. Re1
{[%clk 0:00:04.7]} 44... Rf8 {[%clk 0:00:42.3]} 45. Rc4 {[%clk 0:00:04.3]} 45...
Rf2 {[%clk 0:00:33.3]} 46. Nc6+ {[%clk 0:00:04.8]} 46... Ka8 {[%clk 0:00:33.8]}
47. Nxe5 {[%clk 0:00:05.4]} 47... dxe5 {[%clk 0:00:33.1]} 48. Rc8+ {[%clk
0:00:06]} 48... Ka7 {[%clk 0:00:33.4]} 49. Rc7 {[%clk 0:00:06.6]} 49... Kb8
{[%clk 0:00:33.5]} 50. Rc8+ {[%clk 0:00:06.9]} 50... Ka7 {[%clk 0:00:34.2]} 51.
Rc7 {[%clk 0:00:07.8]} 51... Kb6 {[%clk 0:00:18.9]} 52. Rc6+ {[%clk 0:00:07.7]}
52... Kb5 {[%clk 0:00:19.6]} 53. Bd7 {[%clk 0:00:08.3]} 53... Kxb4 {[%clk
0:00:09.2]} 54. Rb6+ {[%clk 0:00:08.4]} 54... Kc5 {[%clk 0:00:08.7]} 55. Rxb7
{[%clk 0:00:09]} 55... e2 {[%clk 0:00:09.1]} 56. Rbb1 {[%clk 0:00:07.8]} 56...
Rgg2 {[%clk 0:00:09.7]} 57. Bh3 {[%clk 0:00:06.4]} 57... Rg3 {[%clk 0:00:10.3]}
58. Be6 {[%clk 0:00:04]} 58... a5 {[%clk 0:00:09.1]} 59. Rb3 {[%clk 0:00:03.9]}
59... Rf1+ {[%clk 0:00:05.5]} 60. Kh2 {[%clk 0:00:03.9]} 60... Rxe1 {[%clk
0:00:06.2]} 61. Rxg3 {[%clk 0:00:03.3]} 61... Rh1+ {[%clk 0:00:04.7]} 62. Kxh1
{[%clk 0:00:03.4]} 62... e1=Q+ {[%clk 0:00:05.6]} 63. Kg2 {[%clk 0:00:04.3]}
63... Qd2+ {[%clk 0:00:06.1]} 64. Kh3 {[%clk 0:00:04.8]} 64... Qxc2 {[%clk
0:00:05.3]} 65. a3 {[%clk 0:00:03.8]} 65... e4 {[%clk 0:00:04.9]} 66. Kg4 {[%clk
0:00:04]} 66... Qe2+ {[%clk 0:00:03.9]} 67. Kf4 {[%clk 0:00:03.6]} 67... Qf2+
{[%clk 0:00:04.5]} 68. Kg4 {[%clk 0:00:04.1]} 68... e3 {[%clk 0:00:05.1]} 69.
Rf3 {[%clk 0:00:02.7]} 69... Qg2+ {[%clk 0:00:05.5]} 70. Kf4 {[%clk 0:00:03.2]}
70... e2 {[%clk 0:00:04.8]} 71. Re3 {[%clk 0:00:02.3]} 71... Qf2+ {[%clk
0:00:04.6]} 0-1